{"text_format":"1","workbook":"xlsx","n_sheets":16,"sheets":["riepilogo","a1)personale impresa_R","a1)personale impresa_S","a2)personale OdR_R","a2)personale OdR_S","b)strumenti","c)consulenze OdR","d)consulenze altri sogg","e)prestazioni enti","f)prestazioni altri sogg","g)immateriali","h)materiali","l)certificazione e ATS","m) prestazioni coord-diff","n)prestazioni altri sogg","Foglio1"],"not_rendered":{"charts":0,"images":0,"macros":1,"external_links":0,"defined_names":61,"comments":14,"pivot_tables":0},"unopened":[],"bounds":{"document_bytes":16777216,"sheet_cells":100000,"rows_first":2000,"rows_last":500,"rows_between":2000,"halvings":0,"cell_chars":16384,"cell_head_chars":4096},"cells_cut":0,"cells_raw":0,"read":"whole","date_system":"1900"}

{"sheet":"riepilogo","index":0,"n_rows":59,"n_cols":4,"rows_kept":59,"cut":false,"hidden":false,"merged":[[42,1,42,3],[22,2,22,3],[1,1,1,3],[3,1,3,3],[5,1,5,3],[4,2,4,3],[35,2,35,3]]}
[null,"NB salvare il file con estensione xls o xlsm, NO estensione xlsx"]
[null,"QUADRO RIEPILOGATIVO DELLA SPESA"]
[null,"denominazione impresa/Università/Organismo di ricerca"]
[]
[null,"titolo breve del progetto di R&S"]
[]
[]
[]
["R","voce di spesa","ricerca","sviluppo"]
[null,"a1) personale impresa (costi standard)",{"$f":"'a1)personale impresa_R'!H56","v":0},{"$f":"'a1)personale impresa_S'!H56","v":0}]
[null,"a2) personale università/organismi di ricerca (costi reali)",{"$f":"'a2)personale OdR_R'!H55","v":0},{"$f":"'a2)personale OdR_S'!H55","v":0}]
[null,"b) strumenti e attrezzature",{"$f":"'b)strumenti'!K31","v":0},{"$f":"'b)strumenti'!M31","v":0}]
[null,"c) consulenze Università/Organismi di ricerca",{"$f":"'c)consulenze OdR'!E28","v":0},{"$f":"'c)consulenze OdR'!F28","v":0}]
[null,"d) servizi di consulenza da altri soggetti",{"$f":"'d)consulenze altri sogg'!E27","v":0},{"$f":"'d)consulenze altri sogg'!F27","v":0}]
[null,"e) prestazioni enti gestori distretti/parchi per messa a disposizione infrastrutture di ricerca",{"$f":"'e)prestazioni enti'!E28","v":0},{"$f":"'e)prestazioni enti'!F28","v":0}]
[null,"f) prestazioni e lavorazioni da altri soggetti",{"$f":"'f)prestazioni altri sogg'!E27","v":0},{"$f":"'f)prestazioni altri sogg'!F27","v":0}]
[null,"g) beni immateriali",{"$f":"'g)immateriali'!J28","v":0},{"$f":"'g)immateriali'!L28","v":0}]
[null,"h) materiali",{"$f":"'h)materiali'!E27","v":0},{"$f":"'h)materiali'!F27","v":0}]
[null,"i) spese generali  (costi forfettari)",{"$f":"(C10+C11)*0.15","v":0},{"$f":"(D10+D11)*0.15","v":0}]
[null,"spese complessive",{"$f":"SUM(C10:C19)","v":0},{"$f":"SUM(D10:D19)","v":0}]
[null,"IVA NON DETRAIBILE",{"$f":"'b)strumenti'!O31+'c)consulenze OdR'!H28+'d)consulenze altri sogg'!H27+'e)prestazioni enti'!H28+'f)prestazioni altri sogg'!H27+'g)immateriali'!N28+'h)materiali'!H27","v":0},{"$f":"'b)strumenti'!P31+'c)consulenze OdR'!I28+'d)consulenze altri sogg'!I27+'e)prestazioni enti'!I28+'f)prestazioni altri sogg'!I27+'g)immateriali'!O28+'h)materiali'!I27","v":0}]
[null,"spese complessive inclusa iva non detraibile",{"$f":"C20+C21","v":0},{"$f":"D20+D21","v":0}]
[null,"totale spese di ricerca e sviluppo",{"$f":"C22+D22","v":0}]
[]
[]
[]
[]
[null,"voce di spesa","coordinamento progettuale e/o diffusione/divulgazione dei risultati e/o attività trasversali"]
[null,"l) spese per certificazione della spesa e costituzione ATS",{"$f":"'l)certificazione e ATS'!D28","v":0}]
[null,"m) prestazioni enti gestori distretti/parchi per coordinamento progettuale e/o diffusione/divulgazione risultati ",{"$f":"'m) prestazioni coord-diff'!D28","v":0}]
[null,"n) prestazioni e lavorazioni da altri soggetti",{"$f":"'n)prestazioni altri sogg'!D27","v":0}]
[null,"spese complessive",{"$f":"SUM(C29:C31)","v":0}]
[null,"IVA NON DETRAIBILE",{"$f":"'l)certificazione e ATS'!F28+'m) prestazioni coord-diff'!F28+'n)prestazioni altri sogg'!F27","v":0}]
[null,"spese complessive inclusa iva non detraibile",{"$f":"C32+C33","v":0}]
[]
[null,"totale spese progetto (ricerca, sviluppo, coordinamento, diffusione e attività trasversali)",{"$f":"C23+C34","v":0}]
[]
[]
[]
[]
[]
[]
[null,"La domanda è firmata digitalmente\nLa sottoscrizione digitale apposta sul documento elettronico si intende apposta anche al presente documento che dettaglia il quadro economico del singolo intervento e che fa parte integrante della domanda di contributo"]
[]
[]
[]
[]
[null,20,0.65,0.4]
[null,21,0.75,0.55000000000000004]
[null,32,0.55000000000000004,0.3]
[null,"terzi",0.7,0.45]
[null,null,0.45,0.2]
[null,"?",0.6,0.35]
[null,"ricerca"]
[null,"sviluppo","?","?"]
[null,null,"micro","SI"]
[null,null,"piccola","NO"]
[null,null,"media"]
[null,null,"grande"]

{"sheet":"a1)personale impresa_R","index":1,"n_rows":57,"n_cols":9,"rows_kept":57,"cut":false,"hidden":false,"merged":[[2,1,2,6],[33,1,33,2],[5,5,5,7],[9,5,9,7],[34,5,34,7]]}
[".","personale"]
["b"]
[null,"a1) PERSONALE IMPRESA  - ATTIVITA' RICERCA"]
[]
[]
[null,"RESPONSABILE PROGETTO",null,null,null,"calcolo imputabilità",null,null,"numero ore previste"]
["a","cognome e nome"," M F*","qualifica e mansioni","all CV**","tariffa forfait","ore","costo totale","1 ricerca"]
[1,null,null,null,null,null,{"$f":"ROUNDDOWN(SUM(I8:I8),0)","v":0},{"$f":"IF(F8=\"terzi\",\"inserire in tipologia 'prestazioni'\",IF(F8=\"\",\"\",G8*F8))","v":""}]
["n."]
[null,"RICERCATORI",null,null,null,"calcolo imputabilità",null,null,"numero ore previste"]
["b","cognome e nome"," M F*","qualifica e mansioni","all CV**","tariffa forfait","ore","costo totale","1 ricerca"]
[1,null,null,null,null,{"$f":"IF(SUM(I12:I12)>0,19,0)","v":0},{"$f":"ROUNDDOWN(SUM(I12:I12),0)","v":0},{"$f":"IF(F12=0,0,F12*G12)","v":0}]
[2,null,null,null,null,0,{"$f":"SUM(I13:I13)","v":0},0]
[3,null,null,null,null,0,0,0]
[4,null,null,null,null,0,0,0]
[5,null,null,null,null,0,0,0]
[6,null,null,null,null,0,0,0]
[7,null,null,null,null,0,0,{"$f":"IF(F18=0,0,F18*G18)","v":0}]
[8,null,null,null,null,{"$f":"IF(SUM(I19:I19)>0,19,0)","v":0},0,{"$f":"IF(F19=0,0,F19*G19)","v":0}]
[9,null,null,null,null,0,0,0]
[10,null,null,null,null,0,0,0]
[11,null,null,null,null,{"$f":"IF(SUM(I22:I22)>0,19,0)","v":0},0,{"$f":"IF(F22=0,0,F22*G22)","v":0}]
[12,null,null,null,null,0,0,0]
[13,null,null,null,null,0,0,0]
[14,null,null,null,null,0,0,0]
[15,null,null,null,null,{"$f":"IF(SUM(I26:I26)>0,19,0)","v":0},0,{"$f":"IF(F26=0,0,F26*G26)","v":0}]
[16,null,null,null,null,{"$f":"IF(SUM(I27:I27)>0,19,0)","v":0},0,{"$f":"IF(F27=0,0,F27*G27)","v":0}]
[17,null,null,null,null,{"$f":"IF(SUM(I28:I28)>0,19,0)","v":0},0,{"$f":"IF(F28=0,0,F28*G28)","v":0}]
["n.",null,null,null,null,null,null,{"$f":"IF(F29<>\"\",F29*G29,\"\")","v":""}]
[null,null,"TOTALE"," ricercatori",null,{"$f":"IF(B12<>\"\",19,0)","v":0},{"$f":"SUM(G12:G28)","v":0},{"$f":"SUM(H12:H28)","v":0},{"$f":"ROUNDDOWN(SUM(I12:I28),0)","v":0}]
[]
[null,null,null,"compreso il responsabile",null,null,{"$f":"SUM(G7:G28)","v":0},{"$f":"SUM(H7:H28)","v":0},{"$f":"ROUNDDOWN(SUM(I7:I28),0)","v":0}]
[null,null,null,null,null,"pari a giornate uomo (ricercatori)",{"$f":"ore/8","v":0}]
[]
[null,"TECNICI/OPERAI",null,null,null,"calcolo imputabilità",null,null,"numero ore previste"]
["c","cognome e nome"," M F*","qualifica e mansioni","all CV**","tariffa forfait","ore","costo totale","1 ricerca"]
[1,null,null,null,null,{"$f":"IF(SUM(I37:I37)>0,15,0)","v":0},{"$f":"ROUNDDOWN(SUM(I37:I37),0)","v":0},{"$f":"IF(F37=0,0,F37*G37)","v":0}]
[2,null,null,null,null,0,0,0]
[3,null,null,null,null,0,0,0]
[4,null,null,null,null,0,0,0]
[5,null,null,null,null,0,0,0]
[6,null,null,null,null,0,0,0]
[7,null,null,null,null,0,0,0]
[8,null,null,null,null,0,0,0]
[9,null,null,null,null,0,0,0]
[10,null,null,null,null,0,0,0]
[11,null,null,null,null,0,0,0]
[12,null,null,null,null,0,0,0]
[13,null,null,null,null,0,0,0]
[14,null,null,null,null,0,0,0]
[15,null,null,null,null,0,0,{"$f":"IF(F51=0,0,F51*G51)","v":0}]
[16,null,null,null,null,0,0,{"$f":"IF(F52=0,0,F52*G52)","v":0}]
["n.",null,null,null,null,null,null,{"$f":"IF(F53<>\"\",F53*G53,\"\")","v":""}]
[null,null,"TOTALE","tecnici/operai",null,{"$f":"IF(B37<>\"\",15,0)","v":0},{"$f":"SUM(G37:G52)","v":0},{"$f":"SUM(H37:H52)","v":0},{"$f":"ROUNDDOWN(SUM(I37:I52),0)","v":0}]
[null,null,null,null,null,"pari a giornate uomo (ricercatori+operai)",{"$f":"(ore+oreoperai)/8","v":0}]
[null,null,null,null,null,{"$f":"IF(B47<>\"\",15,0)","v":0},{"$f":"SUM(G32,G54)","v":0},{"$f":"SUM(H32,H54)","v":0},0]
[null,"(*) indicare genere maschile o femminile     (**) se per titolare/socio/amministratore/collaboratore familiare allegare curriculum e indicare \"S\""]

{"sheet":"a1)personale impresa_S","index":2,"n_rows":57,"n_cols":12,"rows_kept":57,"cut":false,"hidden":false,"merged":[[5,5,5,7],[9,5,9,7],[33,1,33,2],[34,5,34,7],[2,1,2,5]]}
[".","personale"]
["b"]
[null,"a1) PERSONALE IMPRESA - ATTIVITA' SVILUPPO"]
[]
[]
[null,"RESPONSABILE PROGETTO",null,null,null,"calcolo imputabilità",null,null,"numero ore previste"]
["a","cognome e nome"," M F*","qualifica e mansioni","all CV**","tariffa forfait","ore","costo totale","2 sviluppo"]
[1,null,null,null,null,null,{"$f":"SUM(I8:I8)","v":0},{"$f":"IF(F8=\"terzi\",\"inserire in tipologia 'prestazioni'\",IF(F8=\"\",\"\",G8*F8))","v":""}]
["n."]
[null,"RICERCATORI",null,null,null,"calcolo imputabilità",null,null,"numero ore previste"]
["b","cognome e nome"," M F*","qualifica e mansioni","all CV**","tariffa forfait","ore","costo totale","2 sviluppo"]
[1,null,null,null,null,{"$f":"IF(SUM(I12:I12)>0,19,0)","v":0},{"$f":"ROUNDDOWN(SUM(I12:I12),0)","v":0},{"$f":"IF(F12=0,0,F12*G12)","v":0}]
[2,null,null,null,null,{"$f":"IF(SUM(I13:I13)>0,19,0)","v":0},{"$f":"SUM(I13:I13)","v":0},0]
[3,null,null,null,null,{"$f":"IF(SUM(I14:I14)>0,19,0)","v":0},0,0]
[4,null,null,null,null,{"$f":"IF(SUM(I15:I15)>0,19,0)","v":0},0,0]
[5,null,null,null,null,{"$f":"IF(SUM(I16:I16)>0,19,0)","v":0},0,0]
[6,null,null,null,null,{"$f":"IF(SUM(I17:I17)>0,19,0)","v":0},0,0]
[7,null,null,null,null,0,0,0]
[8,null,null,null,null,0,0,0]
[9,null,null,null,null,0,0,0]
[10,null,null,null,null,0,0,0]
[11,null,null,null,null,0,0,0]
[12,null,null,null,null,0,0,0]
[13,null,null,null,null,{"$f":"IF(SUM(I24:I24)>0,19,0)","v":0},0,0]
[14,null,null,null,null,{"$f":"IF(SUM(I25:I25)>0,19,0)","v":0},0,{"$f":"IF(F25=0,0,F25*G25)","v":0}]
[15,null,null,null,null,{"$f":"IF(SUM(I26:I26)>0,19,0)","v":0},0,{"$f":"IF(F26=0,0,F26*G26)","v":0}]
[16,null,null,null,null,{"$f":"IF(SUM(I27:I27)>0,19,0)","v":0},0,{"$f":"IF(F27=0,0,F27*G27)","v":0}]
[17,null,null,null,null,{"$f":"IF(SUM(I28:I28)>0,19,0)","v":0},0,{"$f":"IF(F28=0,0,F28*G28)","v":0}]
["n.",null,null,null,null,null,null,{"$f":"IF(F29<>\"\",F29*G29,\"\")","v":""}]
[null,null,"TOTALE"," ricercatori",null,{"$f":"IF(B12<>\"\",19,0)","v":0},{"$f":"SUM(G12:G28)","v":0},{"$f":"SUM(H12:H28)","v":0},{"$f":"ROUNDDOWN(SUM(I12:I28),0)","v":0}]
[]
[null,null,null,"compreso il responsabile",null,null,{"$f":"SUM(G7:G28)","v":0},{"$f":"SUM(H7:H28)","v":0},{"$f":"ROUNDDOWN(SUM(I7:I28),0)","v":0}]
[null,null,null,null,null,"pari a giornate uomo (ricercatori)",{"$f":"ore/8","v":0}]
[]
[null,"TECNICI/OPERAI",null,null,null,"calcolo imputabilità",null,null,"numero ore previste"]
["c","cognome e nome"," M F*","qualifica e mansioni","all CV**","tariffa forfait","ore","costo totale","2 sviluppo"]
[1,null,null,null,null,{"$f":"IF(SUM(I37:I37)>0,15,0)","v":0},{"$f":"ROUNDDOWN(SUM(I37:I37),0)","v":0},{"$f":"IF(F37=0,0,F37*G37)","v":0}]
[2,null,null,null,null,0,0,0]
[3,null,null,null,null,0,0,0]
[4,null,null,null,null,0,0,0]
[5,null,null,null,null,0,0,0]
[6,null,null,null,null,0,0,0]
[7,null,null,null,null,0,0,0]
[8,null,null,null,null,0,0,0]
[9,null,null,null,null,0,0,0]
[10,null,null,null,null,0,0,0]
[11,null,null,null,null,0,0,0]
[12,null,null,null,null,0,0,0]
[13,null,null,null,null,0,0,0]
[14,null,null,null,null,0,0,0]
[15,null,null,null,null,0,0,{"$f":"IF(F51=0,0,F51*G51)","v":0}]
[16,null,null,null,null,0,0,{"$f":"IF(F52=0,0,F52*G52)","v":0}]
["n.",null,null,null,null,null,null,{"$f":"IF(F53<>\"\",F53*G53,\"\")","v":""}]
[null,null,"TOTALE","tecnici/operai",null,{"$f":"IF(B37<>\"\",15,0)","v":0},{"$f":"SUM(G37:G52)","v":0},{"$f":"SUM(H37:H52)","v":0},{"$f":"ROUNDDOWN(SUM(I37:I52),0)","v":0}]
[null,null,null,null,null,"pari a giornate uomo (ricercatori+operai)",{"$f":"(ore+oreoperai)/8","v":0}]
[null,null,null,null,null,{"$f":"IF(B40<>\"\",15,0)","v":0},{"$f":"SUM(G32,G54)","v":0},{"$f":"SUM(H32,H54)","v":0},0]
[null,"(*) indicare genere maschile o femminile     (**) se per titolare/socio/amministratore/collaboratore familiare allegare curriculum e indicare \"S\"",null,null,null,null,null,null,null,null,null,{"$f":"SUM(J57:K57)","v":0}]

{"sheet":"a2)personale OdR_R","index":3,"n_rows":56,"n_cols":9,"rows_kept":56,"cut":false,"hidden":false,"merged":[[1,1,1,8],[4,5,4,7],[8,5,8,7],[32,1,32,2],[33,5,33,7]]}
["b"]
[null,"a2) PERSONALE UNIVERSITÀ/ORGANISMI DI RICERCA - ATTIVITA' RICERCA"]
[]
[]
[null,"RESPONSABILE PROGETTO",null,null,null,"calcolo imputabilità",null,null,"numero ore previste"]
["a","cognome e nome"," M F*","qualifica e mansioni","all CV**","costo orario reale","ore","costo totale","1 ricerca"]
[1,null,null,null,null,null,{"$f":"ROUNDDOWN(SUM(I7:I7),0)","v":0},{"$f":"F7*G7","v":0}]
["n."]
[null,"RICERCATORI",null,null,null,"calcolo imputabilità",null,null,"numero ore previste"]
["b","cognome e nome"," M F*","qualifica e mansioni","all CV**","costo orario reale","ore","costo totale","1 ricerca"]
[1,null,null,null,null,null,{"$f":"ROUNDDOWN(SUM(I11:I11),0)","v":0},{"$f":"F11*G11","v":0}]
[2,null,null,null,null,null,{"$f":"SUM(I12:I12)","v":0},0]
[3,null,null,null,null,null,0,0]
[4,null,null,null,null,null,0,0]
[5,null,null,null,null,null,0,0]
[6,null,null,null,null,null,0,0]
[7,null,null,null,null,null,0,0]
[8,null,null,null,null,null,0,0]
[9,null,null,null,null,null,0,0]
[10,null,null,null,null,null,0,0]
[11,null,null,null,null,null,0,0]
[12,null,null,null,null,null,0,0]
[13,null,null,null,null,null,0,0]
[14,null,null,null,null,null,0,0]
[15,null,null,null,null,null,0,0]
[16,null,null,null,null,null,0,0]
[17,null,null,null,null,null,0,0]
["n.",null,null,null,null,null,null,{"$f":"IF(F28<>\"\",F28*G28,\"\")","v":""}]
[null,null,"TOTALE"," ricercatori",null,{"$f":"IF(B11<>\"\",19,0)","v":0},{"$f":"SUM(G11:G27)","v":0},{"$f":"SUM(H11:H27)","v":0},{"$f":"ROUNDDOWN(SUM(I11:I27),0)","v":0}]
[]
[null,null,null,"compreso il responsabile",null,null,{"$f":"SUM(G6:G27)","v":0},{"$f":"SUM(H6:H27)","v":0},{"$f":"ROUNDDOWN(SUM(I6:I27),0)","v":0}]
[null,null,null,null,null,"pari a giornate uomo (ricercatori)",{"$f":"ore/8","v":0}]
[]
[null,"TECNICI/OPERAI",null,null,null,"calcolo imputabilità",null,null,"numero ore previste"]
["c","cognome e nome"," M F*","qualifica e mansioni","all CV**","costo orario reale","ore","costo totale","1 ricerca"]
[1,null,null,null,null,null,{"$f":"ROUNDDOWN(SUM(I36:I36),0)","v":0},{"$f":"F36*G36","v":0}]
[2,null,null,null,null,null,0,0]
[3,null,null,null,null,null,0,0]
[4,null,null,null,null,null,0,0]
[5,null,null,null,null,null,0,0]
[6,null,null,null,null,null,0,0]
[7,null,null,null,null,null,0,0]
[8,null,null,null,null,null,0,0]
[9,null,null,null,null,null,0,0]
[10,null,null,null,null,null,0,0]
[11,null,null,null,null,null,0,0]
[12,null,null,null,null,null,0,0]
[13,null,null,null,null,null,0,0]
[14,null,null,null,null,null,0,0]
[15,null,null,null,null,null,0,0]
[16,null,null,null,null,null,0,0]
["n.",null,null,null,null,null,null,{"$f":"IF(F52<>\"\",F52*G52,\"\")","v":""}]
[null,null,"TOTALE","tecnici/operai",null,{"$f":"IF(B36<>\"\",15,0)","v":0},{"$f":"SUM(G36:G51)","v":0},{"$f":"SUM(H36:H51)","v":0},{"$f":"ROUNDDOWN(SUM(I36:I51),0)","v":0}]
[null,null,null,null,null,"pari a giornate uomo (ricercatori+operai)",{"$f":"(ore+oreoperai)/8","v":0}]
[null,null,null,null,null,{"$f":"IF(B39<>\"\",15,0)","v":0},{"$f":"SUM(G31,G53)","v":0},{"$f":"SUM(H31,H53)","v":0},0]
[null,"(*) indicare genere maschile o femminile     (**) se per titolare/socio/amministratore/collaboratore familiare allegare curriculum e indicare \"S\""]

{"sheet":"a2)personale OdR_S","index":4,"n_rows":56,"n_cols":9,"rows_kept":56,"cut":false,"hidden":false,"merged":[[4,5,4,7],[8,5,8,7],[32,1,32,2],[33,5,33,7],[1,1,1,8]]}
["b"]
[null,"a2) PERSONALE UNIVERSITÀ/ORGANISMI DI RICERCA - ATTIVITA' SVILUPPO"]
[]
[]
[null,"RESPONSABILE PROGETTO",null,null,null,"calcolo imputabilità",null,null,"numero ore previste"]
["a","cognome e nome"," M F*","qualifica e mansioni","all CV**","costo orario reale","ore","costo totale","2 sviluppo"]
[1,null,null,null,null,null,{"$f":"ROUNDDOWN(SUM(I7:I7),0)","v":0},{"$f":"F7*G7","v":0}]
["n."]
[null,"RICERCATORI",null,null,null,"calcolo imputabilità",null,null,"numero ore previste"]
["b","cognome e nome"," M F*","qualifica e mansioni","all CV**","costo orario reale","ore","costo totale","2 sviluppo"]
[1,null,null,null,null,null,{"$f":"ROUNDDOWN(SUM(I11:I11),0)","v":0},{"$f":"F11*G11","v":0}]
[2,null,null,null,null,null,{"$f":"ROUNDDOWN(SUM(I12:I12),0)","v":0},0]
[3,null,null,null,null,null,0,0]
[4,null,null,null,null,null,0,0]
[5,null,null,null,null,null,0,0]
[6,null,null,null,null,null,0,0]
[7,null,null,null,null,null,0,0]
[8,null,null,null,null,null,0,0]
[9,null,null,null,null,null,0,0]
[10,null,null,null,null,null,0,0]
[11,null,null,null,null,null,0,0]
[12,null,null,null,null,null,0,0]
[13,null,null,null,null,null,0,0]
[14,null,null,null,null,null,0,0]
[15,null,null,null,null,null,0,0]
[16,null,null,null,null,null,0,0]
[17,null,null,null,null,null,0,0]
["n.",null,null,null,null,null,null,{"$f":"IF(F28<>\"\",F28*G28,\"\")","v":""}]
[null,null,"TOTALE"," ricercatori",null,{"$f":"IF(B11<>\"\",19,0)","v":0},{"$f":"SUM(G11:G27)","v":0},{"$f":"SUM(H11:H27)","v":0},{"$f":"ROUNDDOWN(SUM(I11:I27),0)","v":0}]
[]
[null,null,null,"compreso il responsabile",null,null,{"$f":"SUM(G6:G27)","v":0},{"$f":"SUM(H6:H27)","v":0},{"$f":"ROUNDDOWN(SUM(I6:I27),0)","v":0}]
[null,null,null,null,null,"pari a giornate uomo (ricercatori)",{"$f":"ore/8","v":0}]
[]
[null,"TECNICI/OPERAI",null,null,null,"calcolo imputabilità",null,null,"numero ore previste"]
["c","cognome e nome"," M F*","qualifica e mansioni","all CV**","costo orario reale","ore","costo totale","2 sviluppo"]
[1,null,null,null,null,null,{"$f":"ROUNDDOWN(SUM(I36:I36),0)","v":0},{"$f":"F36*G36","v":0}]
[2,null,null,null,null,null,0,0]
[3,null,null,null,null,null,0,0]
[4,null,null,null,null,null,0,0]
[5,null,null,null,null,null,0,0]
[6,null,null,null,null,null,0,0]
[7,null,null,null,null,null,0,0]
[8,null,null,null,null,null,0,0]
[9,null,null,null,null,null,0,0]
[10,null,null,null,null,null,0,0]
[11,null,null,null,null,null,0,0]
[12,null,null,null,null,null,0,0]
[13,null,null,null,null,null,0,0]
[14,null,null,null,null,null,0,0]
[15,null,null,null,null,null,0,0]
[16,null,null,null,null,null,0,0]
["n.",null,null,null,null,null,null,{"$f":"IF(F52<>\"\",F52*G52,\"\")","v":""}]
[null,null,"TOTALE","tecnici/operai",null,{"$f":"IF(B36<>\"\",15,0)","v":0},{"$f":"SUM(G36:G51)","v":0},{"$f":"SUM(H36:H51)","v":0},{"$f":"ROUNDDOWN(SUM(I36:I51),0)","v":0}]
[null,null,null,null,null,"pari a giornate uomo (ricercatori+operai)",{"$f":"(ore+oreoperai)/8","v":0}]
[null,null,null,null,null,{"$f":"IF(B39<>\"\",15,0)","v":0},{"$f":"SUM(G31,G53)","v":0},{"$f":"SUM(H31,H53)","v":0},0]
[null,"(*) indicare genere maschile o femminile     (**) se per titolare/socio/amministratore/collaboratore familiare allegare curriculum e indicare \"S\""]

{"sheet":"b)strumenti","index":5,"n_rows":31,"n_cols":16,"rows_kept":31,"cut":false,"hidden":false,"merged":[[5,1,6,1],[5,3,5,8],[4,13,4,15],[5,13,6,13],[5,14,6,14],[5,15,6,15],[5,2,6,2],[5,9,5,12]]}
[]
[]
[null,"b) STRUMENTI E ATTREZZATURE"]
[]
[null,"NB è possibile allargare le righe",null,null,null,null,null,null,null,null,null,null,null,"COMPILARE SOLO IN CASO DI IVA NON DETRAIBILE"]
[null,"fornitore","descrizione del bene","calcolo imputabilità",null,null,null,null,null,"suddivisione spese per tipologia attività",null,"suddivisione spese per tipologia attività",null,"percentuale iva (es 22%)","calcolo IVA RICERCA","calcolo IVA SVILUPPO"]
[null,null,null,"costo\nsenza IVA riferibile al progetto"," Leasing =L\n\nNoleggio=N","Acquisto: gg utilizzo (max 15 mesi per standard/21 mesi strategico)","Acquisto: % ammortamento","utilizzo\n %\n nel progetto","importo imputabile al periodo del progetto","in %","1 ricerca","in %","2 sviluppo"]
[1,null,null,null,null,null,null,null,{"$f":"IF(D8>0,IF(OR(E8=\"L\",E8=\"N\",G8=1),D8*H8,ROUND(D8*F8*G8*H8/365,2)),0)","v":0},null,{"$f":"TRUNC(ROUND(I8*J8,2),2)","v":0},{"$f":"1-J8","v":1},{"$f":"I8-K8","v":0},null,{"$f":"K8*N8","v":0},{"$f":"I8*N8-(O8)","v":0}]
[2,null,null,null,null,null,null,null,0,null,{"$f":"TRUNC(ROUND(I9*J9,2),2)","v":0},{"$f":"1-J9","v":1},{"$f":"I9-K9","v":0},null,0,{"$f":"M9*N9","v":0}]
[3,null,null,null,null,null,null,null,0,null,0,1,0,null,0,0]
[4,null,null,null,null,null,null,null,0,null,0,1,0,null,0,0]
[5,null,null,null,null,null,null,null,0,null,0,1,0,null,0,0]
[6,null,null,null,null,null,null,null,0,null,0,1,0,null,0,0]
[7,null,null,null,null,null,null,null,0,null,0,1,0,null,0,0]
[8,null,null,null,null,null,null,null,0,null,0,1,0,null,{"$f":"K15*N15","v":0},0]
[9,null,null,null,null,null,null,null,0,null,0,1,0,null,0,0]
[10,null,null,null,null,null,null,null,0,null,0,1,0,null,0,0]
[11,null,null,null,null,null,null,null,0,null,0,1,0,null,0,0]
[12,null,null,null,null,null,null,null,0,null,0,1,0,null,0,0]
[13,null,null,null,null,null,null,null,0,null,0,1,0,null,0,0]
[14,null,null,null,null,null,null,null,0,null,0,1,0,null,0,0]
[15,null,null,null,null,null,null,null,0,null,0,1,0,null,0,0]
[16,null,null,null,null,null,null,null,0,null,0,1,0,null,0,0]
[17,null,null,null,null,null,null,null,0,null,0,1,0,null,0,0]
[18,null,null,null,null,null,null,null,0,null,0,1,0,null,0,0]
[19,null,null,null,null,null,null,null,0,null,0,1,0,null,0,0]
[20,null,null,null,null,null,null,null,0,null,0,1,0,null,0,0]
[21,null,null,null,null,null,null,null,0,null,0,1,0,null,0,0]
[22,null,null,null,null,null,null,null,0,null,0,1,0,null,0,0]
[23,null,null,null,null,null,null,null,0,null,0,1,0,null,0,0]
["n.",null,null,{"$f":"SUM(D8:D30)","v":0},null,null,null,null,{"$f":"SUM(I8:I30)","v":0},null,{"$f":"SUM(K8:K30)","v":0},null,{"$f":"SUM(M8:M30)","v":0},null,{"$f":"SUM(O8:O30)","v":0},{"$f":"SUM(P8:P30)","v":0}]

{"sheet":"c)consulenze OdR","index":6,"n_rows":28,"n_cols":9,"rows_kept":28,"cut":false,"hidden":false,"merged":[[4,6,4,8],[5,6,6,6],[5,7,6,7],[5,8,6,8],[5,1,6,1],[5,2,6,2],[5,3,6,3],[5,4,5,5]]}
[null,"elenco"]
[]
[null,"c) CONSULENZE UNIVERSITÀ/ORGANISMI DI RICERCA"]
[]
[null,"NB è possibile allargare le righe",null,null,null,null,"COMPILARE SOLO IN CASO DI IVA NON DETRAIBILE"]
[null,"dati del fornitore (identità e sede)","descrizione della prestazione","costo senza IVA imputabile al progetto","suddivisione spese per tipologia attività",null,"percentuale iva (es 22%)","calcolo IVA RICERCA","calcolo IVA SVILUPPO"]
[null,null,null,null,"1 ricerca","2 sviluppo"]
[1,null,null,{"$f":"(E8+F8)","v":0},null,null,null,{"$f":"E8*G8","v":0},{"$f":"F8*G8","v":0}]
[2,null,null,0,null,null,null,0,0]
[3,null,null,0,null,null,null,0,0]
[4,null,null,0,null,null,null,0,0]
[5,null,null,0,null,null,null,0,0]
[6,null,null,0,null,null,null,0,0]
[7,null,null,0,null,null,null,0,0]
[8,null,null,0,null,null,null,0,0]
[9,null,null,0,null,null,null,0,0]
[10,null,null,0,null,null,null,0,0]
[11,null,null,0,null,null,null,0,0]
[12,null,null,0,null,null,null,0,0]
[13,null,null,0,null,null,null,0,0]
[14,null,null,0,null,null,null,0,0]
[15,null,null,0,null,null,null,0,0]
[16,null,null,0,null,null,null,0,0]
[17,null,null,0,null,null,null,0,0]
[18,null,null,0,null,null,null,0,0]
[19,null,null,0,null,null,null,0,0]
[20,null,null,0,null,null,null,0,0]
["n.",null,null,{"$f":"SUM(D8:D27)","v":0},{"$f":"SUM(E8:E27)","v":0},{"$f":"SUM(F8:F27)","v":0},null,{"$f":"SUM(H8:H27)","v":0},0]

{"sheet":"d)consulenze altri sogg","index":7,"n_rows":27,"n_cols":9,"rows_kept":27,"cut":false,"hidden":false,"merged":[[4,1,5,1],[4,2,5,2],[4,4,4,5],[3,6,3,8],[4,6,5,6],[4,7,5,7],[4,8,5,8],[4,3,5,3]]}
[]
[null,"d) SERVIZI DI CONSULENZA DA ALTRI SOGGETTI"]
[]
[null,"NB è possibile allargare le righe",null,null,null,null,"COMPILARE SOLO IN CASO DI IVA NON DETRAIBILE"]
[null,"dati del fornitore (identità e sede)","descrizione della prestazione","costo senza IVA imputabile al progetto","suddivisione spese per tipologia attività",null,"percentuale iva (es 22%)","calcolo IVA RICERCA","calcolo IVA SVILUPPO"]
[null,null,null,null,"1 ricerca","2 sviluppo"]
[1,null,null,{"$f":"E7+F7","v":0},null,null,null,{"$f":"E7*G7","v":0},{"$f":"F7*G7","v":0}]
[2,null,null,0,null,null,null,0,0]
[3,null,null,0,null,null,null,0,0]
[4,null,null,0,null,null,null,0,0]
[5,null,null,0,null,null,null,0,0]
[6,null,null,0,null,null,null,0,0]
[7,null,null,0,null,null,null,0,0]
[8,null,null,0,null,null,null,0,0]
[9,null,null,0,null,null,null,0,0]
[10,null,null,0,null,null,null,0,0]
[11,null,null,0,null,null,null,0,0]
[12,null,null,0,null,null,null,0,0]
[13,null,null,0,null,null,null,0,0]
[14,null,null,0,null,null,null,0,0]
[15,null,null,0,null,null,null,0,0]
[16,null,null,0,null,null,null,0,0]
[17,null,null,0,null,null,null,0,0]
[18,null,null,0,null,null,null,0,0]
[19,null,null,0,null,null,null,0,0]
[20,null,null,0,null,null,null,0,0]
["n.",null,null,{"$f":"SUM(D7:D26)","v":0},{"$f":"SUM(E7:E26)","v":0},{"$f":"SUM(F7:F26)","v":0},null,{"$f":"SUM(H7:H26)","v":0},0]

{"sheet":"e)prestazioni enti","index":8,"n_rows":28,"n_cols":9,"rows_kept":28,"cut":false,"hidden":false,"merged":[[4,6,4,8],[5,6,6,6],[5,7,6,7],[5,8,6,8],[5,1,6,1],[5,2,6,2],[5,3,6,3],[5,4,5,5]]}
[null,"elenco"]
[]
[null,"e) PRESTAZIONI ENTI GESTORI DI DISTRETTI/PARCHI PER MESSA A DISPOSIZIONE INFRASTRUTTURE DI RICERCA"]
[]
[null,"NB è possibile allargare le righe",null,null,null,null,"COMPILARE SOLO IN CASO DI IVA NON DETRAIBILE"]
[null,"dati del fornitore (identità e sede)","descrizione della prestazione","costo senza IVA imputabile al progetto","suddivisione spese per tipologia attività",null,"percentuale iva (es 22%)","calcolo IVA RICERCA","calcolo IVA SVILUPPO"]
[null,null,null,null,"1 ricerca","2 sviluppo"]
[1,null,null,{"$f":"E8+F8","v":0},null,null,null,{"$f":"E8*G8","v":0},{"$f":"F8*G8","v":0}]
[2,null,null,0,null,null,null,0,0]
[3,null,null,0,null,null,null,0,0]
[4,null,null,0,null,null,null,0,0]
[5,null,null,0,null,null,null,0,0]
[6,null,null,0,null,null,null,0,0]
[7,null,null,0,null,null,null,0,0]
[8,null,null,0,null,null,null,0,0]
[9,null,null,0,null,null,null,0,0]
[10,null,null,0,null,null,null,0,0]
[11,null,null,0,null,null,null,0,0]
[12,null,null,0,null,null,null,0,0]
[13,null,null,0,null,null,null,0,0]
[14,null,null,0,null,null,null,0,0]
[15,null,null,0,null,null,null,0,0]
[16,null,null,0,null,null,null,0,0]
[17,null,null,0,null,null,null,0,0]
[18,null,null,0,null,null,null,0,0]
[19,null,null,0,null,null,null,0,0]
[20,null,null,0,null,null,null,0,0]
["n.",null,null,{"$f":"SUM(D8:D27)","v":0},{"$f":"SUM(E8:E27)","v":0},{"$f":"SUM(F8:F27)","v":0},null,{"$f":"SUM(H8:H27)","v":0},0]

{"sheet":"f)prestazioni altri sogg","index":9,"n_rows":27,"n_cols":9,"rows_kept":27,"cut":false,"hidden":false,"merged":[[3,6,3,8],[4,6,5,6],[4,7,5,7],[4,8,5,8],[4,1,5,1],[4,2,5,2],[4,3,5,3],[4,4,4,5]]}
[]
[null,"f) PRESTAZIONI E LAVORAZIONI DA ALTRI SOGGETTI"]
[]
[null,"NB è possibile allargare le righe",null,null,null,null,"COMPILARE SOLO IN CASO DI IVA NON DETRAIBILE"]
[null,"dati del fornitore (identità e sede)","descrizione della prestazione","costo senza IVA imputabile al progetto","suddivisione spese per tipologia attività",null,"percentuale iva (es 22%)","calcolo IVA RICERCA","calcolo IVA SVILUPPO"]
[null,null,null,null,"1 ricerca","2 sviluppo"]
[1,null,null,{"$f":"E7+F7","v":0},null,null,null,{"$f":"E7*G7","v":0},{"$f":"F7*G7","v":0}]
[2,null,null,{"$f":"E8+F8","v":0},null,null,null,0,0]
[3,null,null,0,null,null,null,0,0]
[4,null,null,0,null,null,null,0,0]
[5,null,null,0,null,null,null,0,0]
[6,null,null,0,null,null,null,0,0]
[7,null,null,0,null,null,null,0,0]
[8,null,null,0,null,null,null,0,0]
[9,null,null,0,null,null,null,0,0]
[10,null,null,0,null,null,null,0,0]
[11,null,null,0,null,null,null,0,0]
[12,null,null,0,null,null,null,0,0]
[13,null,null,0,null,null,null,0,0]
[14,null,null,0,null,null,null,0,0]
[15,null,null,null,null,null,null,0,0]
[16,null,null,null,null,null,null,0,0]
[17,null,null,null,null,null,null,0,0]
[18,null,null,null,null,null,null,0,0]
[19,null,null,0,null,null,null,0,0]
[20,null,null,0,null,null,null,0,0]
["n.",null,null,{"$f":"SUM(D7:D26)","v":0},{"$f":"SUM(E7:E26)","v":0},{"$f":"SUM(F7:F26)","v":0},null,{"$f":"SUM(H7:H26)","v":0},{"$f":"SUM(I7:I26)","v":0}]

{"sheet":"g)immateriali","index":10,"n_rows":28,"n_cols":15,"rows_kept":28,"cut":false,"hidden":false,"merged":[[4,12,4,14],[5,12,6,12],[5,13,6,13],[5,14,6,14],[5,1,6,1],[5,2,6,2],[5,3,5,7],[5,8,5,11]]}
[null,"elenco"]
[]
[null,"g) BENI IMMATERIALI"]
[]
[null,"NB è possibile allargare le righe",null,null,null,null,null,null,null,null,null,null,"COMPILARE SOLO IN CASO DI IVA NON DETRAIBILE"]
[null,"dati del fornitore (identità e sede)","descrizione del bene","calcolo imputabilità",null,null,null,null,"suddivisione spese per tipologia attività",null,null,null,"percentuale iva (es 22%)","calcolo IVA RICERCA","calcolo IVA SVILUPPO"]
[null,null,null,"costo\nsenza IVA riferibile al progetto","Acquisto: gg utilizzo (max 15 mesi per standard/21 mesi strategico)","Acquisto: % ammortamento","utilizzo\n %\n nel progetto","importo imputabile al periodo del progetto","in %","1 ricerca","in %","2 sviluppo"]
[1,null,null,null,null,null,null,{"$f":"IF(D8>0,IF(F8=1,D8*G8,ROUND(D8*E8*F8*G8/365,2)),0)","v":0},null,{"$f":"TRUNC(ROUND(H8*I8,2),2)","v":0},{"$f":"1-I8","v":1},{"$f":"H8-J8","v":0},null,{"$f":"J8*M8","v":0},{"$f":"L8*M8","v":0}]
[2,null,null,null,null,null,null,{"$f":"IF(D9>0,IF(F9=1,D9*G9,ROUND(D9*E9*F9*G9/365,2)),0)","v":0},null,{"$f":"TRUNC(ROUND(H9*I9,2),2)","v":0},{"$f":"1-I9","v":1},{"$f":"H9-J9","v":0},null,0,0]
[3,null,null,null,null,null,null,0,null,0,1,0,null,0,0]
[4,null,null,null,null,null,null,0,null,0,1,0,null,0,0]
[5,null,null,null,null,null,null,0,null,0,1,0,null,0,0]
[6,null,null,null,null,null,null,0,null,0,1,0,null,0,0]
[7,null,null,null,null,null,null,0,null,0,1,0,null,0,0]
[8,null,null,null,null,null,null,0,null,0,1,0,null,0,0]
[9,null,null,null,null,null,null,0,null,0,1,0,null,0,0]
[10,null,null,null,null,null,null,0,null,0,1,0,null,0,0]
[11,null,null,null,null,null,null,0,null,0,1,0,null,0,0]
[12,null,null,null,null,null,null,0,null,0,1,0,null,0,0]
[13,null,null,null,null,null,null,0,null,0,1,0,null,0,0]
[14,null,null,null,null,null,null,0,null,0,1,0,null,0,0]
[15,null,null,null,null,null,null,0,null,0,1,0,null,0,0]
[16,null,null,null,null,null,null,0,null,0,1,0,null,0,0]
[17,null,null,null,null,null,null,0,null,0,1,0,null,0,0]
[18,null,null,null,null,null,null,0,null,0,1,0,null,0,0]
[19,null,null,null,null,null,null,0,null,0,1,0,null,0,0]
[20,null,null,null,null,null,null,0,null,0,1,0,null,0,0]
["n.",null,null,{"$f":"SUM(D8:D27)","v":0},null,null,null,{"$f":"SUM(H8:H27)","v":0},null,0,null,0,null,{"$f":"SUM(N8:N27)","v":0},0]

{"sheet":"h)materiali","index":11,"n_rows":27,"n_cols":9,"rows_kept":27,"cut":false,"hidden":false,"merged":[[4,1,5,1],[4,2,5,2],[4,4,4,5],[3,6,3,8],[4,6,5,6],[4,7,5,7],[4,8,5,8],[4,3,5,3]]}
[]
[null,"h) MATERIALI"]
[]
[null,"NB è possibile allargare le righe",null,null,null,null,"COMPILARE SOLO IN CASO DI IVA NON DETRAIBILE"]
[null,"dati del fornitore (identità e sede)","descrizione del bene","costo senza IVA imputabile al progetto","suddivisione spese per tipologia attività",null,"percentuale iva (es 22%)","calcolo IVA RICERCA","calcolo IVA SVILUPPO"]
[null,null,null,null,"1 ricerca","2 sviluppo"]
[1,null,null,{"$f":"E7+F7","v":0},null,null,null,{"$f":"E7*G7","v":0},{"$f":"F7*G7","v":0}]
[2,null,null,{"$f":"E8+F8","v":0},null,null,null,0,0]
[3,null,null,0,null,null,null,0,0]
[4,null,null,0,null,null,null,0,0]
[5,null,null,0,null,null,null,0,0]
[6,null,null,0,null,null,null,0,0]
[7,null,null,0,null,null,null,0,0]
[8,null,null,0,null,null,null,0,0]
[9,null,null,0,null,null,null,0,0]
[10,null,null,0,null,null,null,0,0]
[11,null,null,0,null,null,null,0,0]
[12,null,null,0,null,null,null,0,0]
[13,null,null,0,null,null,null,0,0]
[14,null,null,0,null,null,null,0,0]
[15,null,null,0,null,null,null,0,0]
[16,null,null,0,null,null,null,0,0]
[17,null,null,0,null,null,null,0,0]
[18,null,null,0,null,null,null,0,0]
[19,null,null,0,null,null,null,0,0]
[20,null,null,0,null,null,null,0,0]
["n.",null,null,{"$f":"SUM(D7:D26)","v":0},{"$f":"SUM(E7:E26)","v":0},{"$f":"SUM(F7:F26)","v":0},null,{"$f":"SUM(H7:H26)","v":0},{"$f":"SUM(I7:I26)","v":0}]

{"sheet":"l)certificazione e ATS","index":12,"n_rows":28,"n_cols":6,"rows_kept":28,"cut":false,"hidden":false,"merged":[[4,4,4,5],[5,5,6,5],[5,1,6,1],[5,2,6,2],[5,3,6,3],[5,4,6,4]]}
[null,"elenco"]
[]
[null,"l) SPESE PER CERTIFICAZIONE DELLA SPESA E COSTITUZIONE ATS"]
[]
[null,"NB è possibile allargare le righe",null,null,"COMPILARE SOLO IN CASO DI IVA NON DETRAIBILE"]
[null,"dati del fornitore (identità e sede)","descrizione della prestazione","costo senza IVA imputabile al progetto","percentuale iva (es 22%)","calcolo IVA"]
[]
[1,null,null,null,null,{"$f":"D8*E8","v":0}]
[2,null,null,null,null,0]
[3,null,null,null,null,0]
[4,null,null,null,null,0]
[5,null,null,null,null,0]
[6,null,null,null,null,0]
[7,null,null,null,null,0]
[8,null,null,null,null,0]
[9,null,null,null,null,0]
[10,null,null,null,null,0]
[11,null,null,null,null,0]
[12,null,null,null,null,0]
[13,null,null,null,null,0]
[14,null,null,null,null,0]
[15,null,null,null,null,0]
[16,null,null,null,null,0]
[17,null,null,null,null,0]
[18,null,null,null,null,0]
[19,null,null,null,null,0]
[20,null,null,null,null,0]
["n.",null,null,{"$f":"SUM(D8:D27)","v":0},null,{"$f":"SUM(F8:F27)","v":0}]

{"sheet":"m) prestazioni coord-diff","index":13,"n_rows":28,"n_cols":6,"rows_kept":28,"cut":false,"hidden":false,"merged":[[2,1,2,3],[5,4,6,4],[5,5,6,5],[5,1,6,1],[5,2,6,2],[5,3,6,3],[4,4,4,5]]}
[null,"elenco"]
[]
[null,"m) PRESTAZIONI ENTI GESTORI DI DISTRETTI/PARCHI PER COORDINAMENTO PROGETTUALE E/O DIFFUSIONE/DIVULGAZIONE RISULTATI"]
[]
[null,"NB è possibile allargare le righe",null,null,"COMPILARE SOLO IN CASO DI IVA NON DETRAIBILE"]
[null,"dati del fornitore (identità e sede)","descrizione della prestazione","costo senza IVA imputabile al progetto","percentuale iva (es 22%)","calcolo IVA"]
[]
[1,null,null,null,null,{"$f":"D8*E8","v":0}]
[2,null,null,null,null,0]
[3,null,null,null,null,0]
[4,null,null,null,null,0]
[5,null,null,null,null,0]
[6,null,null,null,null,0]
[7,null,null,null,null,0]
[8,null,null,null,null,0]
[9,null,null,null,null,0]
[10,null,null,null,null,0]
[11,null,null,null,null,0]
[12,null,null,null,null,0]
[13,null,null,null,null,0]
[14,null,null,null,null,0]
[15,null,null,null,null,0]
[16,null,null,null,null,0]
[17,null,null,null,null,0]
[18,null,null,null,null,0]
[19,null,null,null,null,0]
[20,null,null,null,null,0]
["n.",null,null,{"$f":"SUM(D8:D27)","v":0},null,{"$f":"SUM(F8:F27)","v":0}]

{"sheet":"n)prestazioni altri sogg","index":14,"n_rows":27,"n_cols":6,"rows_kept":27,"cut":false,"hidden":false,"merged":[[3,4,3,5],[4,5,5,5],[4,1,5,1],[4,2,5,2],[4,3,5,3],[4,4,5,4]]}
[]
[null,"n) PRESTAZIONI E LAVORAZIONI DA ALTRI SOGGETTI"]
[]
[null,"NB è possibile allargare le righe",null,null,"COMPILARE SOLO IN CASO DI IVA NON DETRAIBILE"]
[null,"dati del fornitore (identità e sede)","descrizione della prestazione","costo senza IVA imputabile al progetto","percentuale iva (es 22%)","calcolo IVA"]
[]
[1,null,null,null,null,{"$f":"D7*E7","v":0}]
[2,null,null,null,null,0]
[3,null,null,null,null,0]
[4,null,null,null,null,0]
[5,null,null,null,null,0]
[6,null,null,null,null,0]
[7,null,null,null,null,0]
[8,null,null,null,null,0]
[9,null,null,null,null,0]
[10,null,null,null,null,0]
[11,null,null,null,null,0]
[12,null,null,null,null,0]
[13,null,null,null,null,0]
[14,null,null,null,null,0]
[15,null,null,null,null,0]
[16,null,null,null,null,0]
[17,null,null,null,null,0]
[18,null,null,null,null,0]
[19,null,null,null,null,0]
[20,null,null,null,null,0]
["n.",null,null,{"$f":"SUM(D7:D26)","v":0},null,{"$f":"SUM(F7:F26)","v":0}]

{"sheet":"Foglio1","index":15,"n_rows":0,"n_cols":0,"rows_kept":0,"cut":false,"hidden":false,"merged":[]}